bitfinex/quotes_BTCUSD_20251104
["timestamp","ask_amount","ask_price","bid_price","bid_amount"]
[1762287615308,0.57586515,100160.0,100130.0,0.02646781]
[1762287615519,0.37618228,100140.0,100130.0,0.00048631]
[1762287615722,0.09154,100150.0,100140.0,0.19972039]
[1762287615929,0.03618228,100160.0,100130.0,0.01036983]
[1762287616124,0.03618228,100140.0,100130.0,0.00038282]
[1762287616326,0.12772228,100140.0,100130.0,0.00038282]
[1762287616542,0.46772228,100140.0,100130.0,0.00038282]
[1762287617190,0.37618228,100140.0,100130.0,0.00038282]
[1762287617365,0.33986349,100140.0,100130.0,0.00038282]
[1762287617574,0.13770829,100140.0,100110.0,0.0002]
[1762287617785,0.1485301,100130.0,100110.0,0.0002]
[1762287617998,0.12734228,100130.0,100110.0,0.0002]
[1762287618201,0.12734228,100130.0,100110.0,0.19997983]
[1762287618410,0.03666631,100140.0,100120.0,0.19975791]
[1762287618621,0.03666631,100140.0,100110.0,0.0002]
[1762287618622,0.29090228,100130.0,100110.0,0.0002]
[1762287618833,0.29090228,100130.0,100080.0,0.20977885]
[1762287618834,0.12714228,100120.0,100080.0,0.20977885]
[1762287619048,0.03618228,100100.0,100070.0,0.55005233]
[1762287619421,0.03618228,100100.0,100070.0,0.0002]
[1762287619658,0.09096,100090.0,100070.0,0.0002]
[1762287619843,0.24971794,100120.0,100070.0,0.0002]
[1762287620016,0.28955576,100120.0,100080.0,0.19983988]
[1762287620286,0.04995495,100120.0,100080.0,0.19998379]
[1762287620511,0.04995495,100120.0,100080.0,0.19998459]
[1762287620753,0.25968424,100130.0,100090.0,0.20981102]
[1762287620993,0.01275702,100150.0,100110.0,0.19977927]
[1762287621226,0.01275702,100150.0,100120.0,0.20974613]
[1762287621474,0.1052,100160.0,100120.0,0.20974827]
[1762287621697,0.0462,100170.0,100130.0,0.29928401]
[1762287621918,0.00091,100170.0,100150.0,0.19968777]
[1762287622145,0.00136,100160.0,100130.0,0.29928074]
[1762287622379,0.0462,100200.0,100160.0,0.29921927]
[1762287622602,0.00048463,100200.0,100170.0,0.2096423]
[1762287622859,0.00229463,100200.0,100170.0,0.2096423]
[1762287623344,0.0033395,100180.0,100170.0,0.2096423]
[1762287623608,0.0033395,100180.0,100150.0,0.20968424]
[1762287623815,0.04712,100190.0,100150.0,0.20968424]
[1762287623816,0.00224,100170.0,100150.0,0.20968511]
[1762287624022,0.00224,100170.0,100140.0,0.2097042]
[1762287624228,0.00283022,100160.0,100150.0,0.19970044]
[1762287624378,0.00283022,100160.0,100150.0,0.28925713]
[1762287624790,0.00283022,100160.0,100150.0,0.38234713]
[1762287625148,0.00283022,100160.0,100150.0,0.43234713]
[1762287625355,0.00331455,100160.0,100150.0,0.43234713]
[1762287625601,0.22312167,100230.0,100180.0,0.00998203]
[1762287625795,0.00047,100220.0,100190.0,0.00998103]
[1762287626070,0.00047,100220.0,100190.0,0.20959985]
[1762287626291,0.19999516,100240.0,100200.0,0.30141799]
[1762287626492,0.19999516,100240.0,100180.0,0.25976467]
[1762287626493,0.20998937,100230.0,100180.0,0.25976467]
[1762287626693,0.00100011,100220.0,100200.0,0.19959839]
[1762287626922,0.21000952,100220.0,100180.0,0.20976467]
[1762287627124,0.03665228,100220.0,100190.0,0.20960044]
[1762287627351,0.00147011,100210.0,100180.0,0.19978568]
[1762287627524,0.00147011,100210.0,100180.0,0.00014561]
[1762287627779,0.00047,100210.0,100180.0,0.00405838]
[1762287627964,0.20007266,100200.0,100180.0,0.00014561]
[1762287628281,0.24951713,100220.0,100180.0,0.20976756]
[1762287628282,0.25044644,100220.0,100180.0,0.20976756]
[1762287628451,0.23669385,100210.0,100180.0,0.00014561]
[1762287628651,0.23769506,100210.0,100180.0,0.00014561]
[1762287628853,0.03811239,100210.0,100180.0,0.20976792]
[1762287629090,0.25947385,100230.0,100190.0,0.20960138]
[1762287629091,0.20047175,100230.0,100190.0,0.20960138]
[1762287629246,0.00100011,100220.0,100190.0,0.20960075]
[1762287629448,0.00093,100230.0,100200.0,0.28915738]
[1762287629707,0.00093,100230.0,100190.0,0.20960075]
[1762287630000,0.00093,100230.0,100200.0,0.20957967]
[1762287630354,0.04755,100250.0,100220.0,0.19955956]
[1762287630534,0.00093,100250.0,100230.0,0.19953944]
[1762287630676,0.20084266,100270.0,100240.0,0.00384438]
[1762287630879,0.00138,100260.0,100220.0,0.29909454]
[1762287631120,0.00138,100260.0,100230.0,0.21325028]
[1762287631306,0.25515382,100280.0,100230.0,0.20951682]
[1762287631512,0.00138,100270.0,100240.0,0.19952003]
[1762287631723,0.00203692,100240.0,100210.0,0.20955966]
[1762287631925,0.20949818,100240.0,100190.0,0.34915744]
[1762287632126,0.20949818,100240.0,100180.0,0.19958404]
[1762287632127,0.20092357,100230.0,100180.0,0.19958404]
[1762287632377,0.2109203,100220.0,100170.0,0.29908579]
[1762287632555,0.2109203,100220.0,100160.0,0.43511786]
[1762287632556,0.19960116,100200.0,100160.0,0.20956786]
[1762287632760,0.05660003,100200.0,100150.0,0.20958735]
[1762287632964,0.20962459,100180.0,100160.0,0.00014561]
[1762287633149,0.23584285,100170.0,100160.0,0.00014561]
[1762287633367,0.19968117,100160.0,100110.0,0.29927037]
[1762287633568,0.19970512,100150.0,100110.0,0.21019801]
[1762287633703,0.20969014,100150.0,100110.0,0.20026276]
[1762287633900,0.19972123,100140.0,100110.0,0.00048433]
[1762287634107,0.23078028,100120.0,100110.0,4.33e-06]
[1762287634308,0.08775153,100120.0,100110.0,4.33e-06]
[1762287634548,0.25966219,100140.0,100110.0,4.33e-06]
[1762287634809,0.08568228,100130.0,100110.0,4.33e-06]
[1762287635027,0.24922228,100140.0,100110.0,4.33e-06]
[1762287635203,0.0495,100130.0,100110.0,0.50000433]
[1762287635452,0.03618228,100140.0,100120.0,0.19975806]
[1762287635658,0.20970693,100140.0,100110.0,0.50000433]
[1762287635997,0.03102,100160.0,100120.0,0.30388135]
[1762287636206,0.03102,100160.0,100130.0,0.21431963]
[1762287636403,0.19966114,100170.0,100120.0,0.34929606]
[1762287636644,0.20966508,100160.0,100110.0,0.70985314]
[1762287636826,0.24187884,100160.0,100110.0,0.70985314]
[1762287637028,0.00998203,100180.0,100140.0,0.00998601]
[1762287637191,0.20962787,100180.0,100130.0,0.20972708]
[1762287637406,0.04455,100180.0,100140.0,0.21306594]
[1762287637603,0.04455,100180.0,100130.0,0.20972708]
[1762287637604,0.19966073,100170.0,100130.0,0.20972708]
[1762287637803,0.19966073,100170.0,100140.0,0.19971934]
[1762287637804,0.04455,100170.0,100140.0,0.19971934]
[1762287638033,0.28024,100190.0,100140.0,0.20970535]
[1762287638273,0.04455,100180.0,100150.0,0.19970022]
[1762287638474,0.04455,100180.0,100140.0,0.20970535]
[1762287638722,0.04455,100180.0,100150.0,0.20968434]
[1762287638890,0.03618228,100170.0,100120.0,0.1495447]
[1762287639089,0.04659,100130.0,100110.0,0.50016]
[1762287639292,0.2909006,100130.0,100110.0,0.50016]
[1762287639467,0.09116,100130.0,100110.0,0.50030582]
[1762287640255,0.04457,100120.0,100110.0,0.50030582]
[1762287640455,0.28051256,100120.0,100110.0,0.49985582]
[1762287640684,0.30893923,100120.0,100110.0,0.49985582]
[1762287640882,0.35880011,100120.0,100110.0,0.49985582]
[1762287641047,0.35968372,100120.0,100110.0,0.49985582]
[1762287641247,0.18502102,100120.0,100110.0,0.49985582]
[1762287641464,0.33037344,100120.0,100110.0,0.49985582]
[1762287641789,0.08075228,100120.0,100110.0,0.49985582]
[1762287642346,0.04457,100120.0,100110.0,0.49989582]
[1762287642580,0.04447209,100120.0,100110.0,0.49989582]
[1762287642782,0.04447209,100120.0,100110.0,0.49993582]
[1762287642783,0.33027553,100120.0,100110.0,0.49993582]
[1762287643211,0.09417956,100120.0,100110.0,0.49997582]
[1762287643421,0.09417956,100120.0,100110.0,0.50001582]
[1762287643871,0.16915787,100120.0,100110.0,0.06882503]
[1762287644131,0.20563667,100120.0,100110.0,0.05547175]
[1762287644350,0.18053261,100120.0,100110.0,0.05551175]
[1762287644609,0.09408115,100120.0,100110.0,0.05551175]
[1762287644862,0.09408115,100120.0,100110.0,0.05555175]
[1762287645145,0.13026343,100120.0,100110.0,0.05555175]
[1762287645725,0.13026343,100120.0,100110.0,1e-08]
[1762287645726,0.18013768,100120.0,100110.0,1e-08]
[1762287645991,0.18013768,100120.0,100080.0,6.6e-07]
[1762287645992,0.28586332,100090.0,100080.0,6.6e-07]
[1762287646248,0.28586332,100090.0,100080.0,0.00014652]
[1762287646249,0.08604316,100090.0,100080.0,0.00014652]
[1762287646502,0.24501016,100090.0,100080.0,0.00014652]
[1762287646708,0.23591262,100080.0,100070.0,0.0002]
[1762287646877,0.23591262,100080.0,100040.0,0.00059369]
[1762287646878,0.19988753,100060.0,100040.0,0.00059369]
[1762287647080,0.33532466,100070.0,100040.0,0.00073939]
[1762287647255,0.05985388,100070.0,100040.0,0.00073939]
[1762287647482,0.30486204,100090.0,100040.0,0.30497509]
[1762287647639,0.1998601,100070.0,100040.0,0.00073939]
[1762287647860,0.25502353,100080.0,100040.0,0.00073939]
[1762287648094,0.04519,100080.0,100040.0,0.00447984]
[1762287648300,0.24503527,100080.0,100040.0,0.21065474]
[1762287648525,0.19988441,100060.0,100040.0,0.00077939]
[1762287648753,0.19990004,100050.0,100000.0,0.0002]
[1762287648952,0.04473,100030.0,100000.0,0.0002]
[1762287649162,0.29095245,100050.0,100000.0,0.23019565]
[1762287649391,0.20994221,100030.0,100000.0,0.0002]
[1762287649595,0.19996034,100020.0,100000.0,0.0002]
[1762287649823,0.24469146,100020.0,100000.0,0.0002]
[1762287650009,0.24469146,100020.0,99945.0,0.2483082]
[1762287650010,0.2100214,99990.0,99945.0,0.2483082]
[1762287650217,0.01,100000.0,99951.0,0.00422153]
[1762287650424,0.01,100000.0,99950.0,0.010005]
[1762287650634,0.010003,99970.0,99940.0,9e-05]
[1762287650836,0.010002,99980.0,99940.0,9e-05]
[1762287651042,0.04618228,100000.0,99950.0,0.010005]
[1762287651261,0.010001,99990.0,99951.0,0.01447985]
[1762287651455,0.22275911,99989.0,99940.0,0.01058159]
[1762287651664,0.010002,99980.0,99940.0,0.01058159]
[1762287652098,0.010003,99970.0,99940.0,0.00057559]
[1762287652302,0.20006792,99967.0,99951.0,4e-05]
[1762287652503,0.04481,99974.0,99951.0,4e-05]
[1762287652724,0.03618228,99960.0,99940.0,0.00027559]
[1762287652918,0.03618228,99960.0,99870.0,0.0002]
[1762287652919,0.010006,99940.0,99880.0,0.05]
[1762287653152,0.04424,99939.0,99906.0,0.20018817]
[1762287653365,0.04424,99939.0,99910.0,0.010009]
[1762287653630,0.04424,99939.0,99911.0,0.0052774]
[1762287653832,0.20012407,99938.0,99890.0,0.01049828]
[1762287653985,0.04424,99939.0,99904.0,0.20019022]
[1762287654320,0.20016306,99919.0,99890.0,3.727e-05]
[1762287654559,0.20016613,99917.0,99890.0,3.727e-05]
[1762287654764,0.05986988,99910.0,99860.0,0.01001401]
[1762287654965,0.03666548,99910.0,99860.0,0.01001401]
[1762287655172,0.0004832,99910.0,99880.0,0.01001201]
[1762287655597,0.0004832,99910.0,99887.0,0.20022625]
[1762287655801,0.04356,99909.0,99871.0,0.20025833]
[1762287656003,0.04356,99909.0,99890.0,4e-05]
[1762287656275,0.0004832,99910.0,99891.0,0.20021823]
[1762287656483,0.0004832,99910.0,99890.0,8e-05]
[1762287656889,0.0004832,99910.0,99890.0,0.00012]
[1762287657064,0.04356,99909.0,99890.0,0.00012]
[1762287657265,0.0004832,99910.0,99891.0,0.08955669]
[1762287657466,0.0004832,99910.0,99906.0,0.28974326]
[1762287657665,0.0004832,99910.0,99908.0,0.20018416]
[1762287658643,0.0004832,99910.0,99900.0,0.05]
[1762287658849,0.0004832,99910.0,99881.0,0.20023632]
[1762287659087,0.0004832,99910.0,99909.0,0.00437011]
[1762287661621,0.0004832,99910.0,99909.0,0.0939268]
[1762287662023,0.0004832,99910.0,99909.0,0.00437011]
[1762287662389,0.0004832,99910.0,99909.0,0.00392011]
[1762287663597,0.0004832,99910.0,99909.0,0.00504892]
[1762287664161,0.0044832,99910.0,99909.0,0.00181063]
[1762287664366,0.0004832,99910.0,99909.0,0.00181063]
[1762287664571,0.25052424,99910.0,99909.0,0.00181063]
[1762287664768,0.20066336,99910.0,99909.0,0.00181063]
[1762287665382,0.20021823,99891.0,99802.0,0.05636]
[1762287665512,0.01001101,99890.0,99819.0,0.20036138]
[1762287665722,0.03015926,99890.0,99839.0,0.2003206]
[1762287665927,0.03015926,99890.0,99830.0,0.01001702]
[1762287665928,0.20023805,99882.0,99840.0,0.01001602]
[1762287666114,0.04296,99889.0,99831.0,0.20033857]
[1762287666115,0.01001201,99880.0,99831.0,0.20033857]
[1762287666309,0.02085084,99879.0,99840.0,0.01001602]
[1762287666555,0.04296,99889.0,99850.0,0.01001502]
[1762287666711,0.03466,99841.0,99810.0,0.01001903]
[1762287666923,0.04435,99840.0,99805.0,9e-05]
[1762287667131,0.03466,99841.0,99826.0,0.20034708]
[1762287667339,0.03466,99855.0,99834.0,0.20033131]
[1762287667543,0.03466,99855.0,99841.0,0.20031796]
[1762287667749,0.03466,99855.0,99846.0,0.20030704]
[1762287668101,0.34,99867.0,99842.0,0.08955669]
[1762287668327,0.03466,99873.0,99844.0,0.08955669]
[1762287668328,0.05700027,99871.0,99844.0,0.08955669]
[1762287668536,0.05700027,99871.0,99830.0,0.06001702]
[1762287668744,0.04435,99870.0,99830.0,0.05]
[1762287668951,0.01001401,99860.0,99810.0,0.05]
[1762287669192,0.01001502,99850.0,99810.0,0.05]
[1762287669385,0.01001502,99850.0,99800.0,0.0002]
[1762287669386,0.34,99834.0,99800.0,0.0002]
[1762287669604,0.03598,99806.0,99800.0,0.0002]
[1762287669804,0.01001602,99840.0,99800.0,0.0002]
[1762287669805,0.04435,99839.0,99800.0,0.0002]
[1762287670095,0.04435,99839.0,99810.0,0.01001903]
[1762287670444,0.04435,99839.0,99810.0,0.00014603]
[1762287670751,0.02081799,99838.0,99800.0,0.01022004]
[1762287670973,0.04435,99839.0,99800.0,0.01022004]
[1762287670974,0.04435,99839.0,99800.0,0.01036618]
[1762287671180,0.05987489,99860.0,99800.0,0.01036618]
[1762287671181,0.05045119,99876.0,99800.0,0.01036618]
[1762287671182,0.04421,99838.0,99810.0,0.01001903]
[1762287671354,0.04421,99870.0,99830.0,0.01001702]
[1762287671554,0.04421,99870.0,99811.0,0.20037871]
[1762287671555,0.05422301,99870.0,99837.0,0.00184296]
[1762287671756,0.04421,99870.0,99830.0,0.01001702]
[1762287671982,0.04421,99870.0,99830.0,0.06001702]
[1762287672177,0.04421,99870.0,99841.0,0.19391789]
[1762287672399,0.04421,99870.0,99831.0,0.08955669]
[1762287672543,0.044693,99870.0,99831.0,0.08955669]
[1762287672742,0.044693,99870.0,99840.0,0.01001602]
[1762287672952,0.000483,99870.0,99868.0,0.20026332]
[1762287673155,0.000483,99870.0,99869.0,0.08955669]
[1762287673394,0.01259019,99910.0,99880.0,0.05]
[1762287673596,0.04435,99921.0,99880.0,0.00014614]
[1762287673796,0.04435,99920.0,99880.0,0.01015815]
[1762287673996,0.054358,99920.0,99880.0,0.00014614]
[1762287674255,0.010009,99910.0,99880.0,0.00014614]
[1762287674483,0.04435,99920.0,99880.0,0.00014614]
[1762287674789,0.04435,99920.0,99850.0,0.01001502]
[1762287674790,0.010009,99910.0,99851.0,0.20029844]
[1762287674993,0.01001001,99900.0,99841.0,0.20031826]
[1762287675321,0.01001001,99900.0,99803.0,0.05584]
[1762287675322,0.03437,99852.0,99820.0,0.01001803]
[1762287675531,0.03437,99852.0,99827.0,0.20034377]
[1762287675704,0.03437,99869.0,99840.0,0.01001602]
[1762287675956,0.2001029,99949.0,99865.0,0.08955669]
[1762287676081,0.04435,99900.0,99870.0,0.01001301]
[1762287676272,0.05658325,99921.0,99890.0,0.01001101]
[1762287676479,0.05672821,99921.0,99870.0,0.01401301]
[1762287676772,0.04435,99920.0,99870.0,0.04619529]
[1762287676973,0.04435,99920.0,99885.0,0.20022971]
[1762287677184,0.01237821,99921.0,99890.0,0.01001101]
[1762287677382,0.00014496,99921.0,99900.0,0.00023022]
[1762287677594,0.00014496,99921.0,99900.0,0.0864125]
[1762287677896,0.00014496,99921.0,99920.0,0.05]
[1762287678099,0.01271355,99974.0,99930.0,0.04018228]
[1762287678288,0.00048688,99974.0,99960.0,0.03618228]
[1762287678491,0.00048688,99974.0,99950.0,0.05]
[1762287678690,0.04435,99973.0,99940.0,0.05]
[1762287678946,0.010003,99970.0,99920.0,0.010008]
[1762287679193,0.00048688,99974.0,99930.0,0.010007]
[1762287679393,0.00048688,99974.0,99968.0,0.08955669]
[1762287679615,0.00048688,99974.0,99960.0,0.05]
[1762287679821,0.00048688,99974.0,99968.0,0.20006302]
[1762287679941,0.00048688,99974.0,99964.0,0.20007003]
[1762287680149,0.00048688,99974.0,99971.0,0.20005801]
[1762287680633,0.00048688,99974.0,99973.0,0.08955669]
[1762287680839,0.01258322,100030.0,100000.0,0.01]
[1762287681039,0.0127293,100030.0,100010.0,0.05]
[1762287681205,0.00014608,100030.0,100010.0,0.24997875]
[1762287681439,0.01236541,100030.0,100010.0,0.05]
[1762287681642,0.01236541,100030.0,100010.0,0.03618228]
[1762287681762,0.34,100020.0,100000.0,0.05]
[1762287681972,0.04435,100020.0,100000.0,0.05]
[1762287682179,0.04435,100020.0,99980.0,0.03618228]
[1762287682491,0.34,99999.0,99960.0,0.060004]
[1762287682696,0.34,99999.0,99973.0,0.08955669]
[1762287682874,0.34,99997.0,99960.0,0.05]
[1762287683363,0.34,99995.0,99937.0,0.20012443]
[1762287683561,0.04435,99996.0,99960.0,0.13955669]
[1762287683762,0.010002,99980.0,99900.0,0.05951643]
[1762287683992,0.04435,99979.0,99920.0,0.010008]
[1762287684221,0.34,99988.0,99940.0,0.05]
[1762287684416,0.000146,99995.0,99970.0,0.08955669]
[1762287684628,0.000146,99995.0,99971.0,0.08955669]
[1762287684823,0.000146,99995.0,99960.0,0.05]
[1762287684824,0.044496,99995.0,99960.0,0.05]
[1762287684978,0.20999589,100020.0,99962.0,0.08955669]
[1762287684979,0.04986088,100020.0,99962.0,0.08955669]
[1762287685152,0.21220582,100030.0,99994.0,0.04595]
[1762287685153,0.01221437,100030.0,99994.0,0.04595]
[1762287685357,0.2199657,100070.0,99995.0,0.10492633]
[1762287685358,0.12048629,100070.0,99995.0,0.10492633]
[1762287685730,8e-05,100080.0,100040.0,0.009996]
[1762287686027,8e-05,100080.0,100050.0,0.009995]
[1762287686270,8e-05,100080.0,100070.0,0.05]
[1762287686481,0.00056679,100080.0,100050.0,0.06197068]
[1762287686611,0.00056679,100080.0,100060.0,0.03618228]
[1762287686813,0.00056679,100080.0,100050.0,0.25988949]
[1762287687019,0.00160837,100060.0,100050.0,0.34547177]
[1762287687235,0.00156321,100060.0,100050.0,0.29607177]
[1762287687640,0.00156321,100060.0,100050.0,0.39547177]
[1762287687879,0.00156321,100060.0,100050.0,0.29607177]
[1762287688091,0.00156321,100060.0,100050.0,0.48502846]
[1762287688443,0.00156321,100060.0,100050.0,0.33562846]
[1762287688642,0.00156321,100060.0,100050.0,0.12573897]
[1762287688888,0.34156321,100060.0,100050.0,0.33945673]
[1762287689061,0.34,100050.0,100040.0,0.13955669]
[1762287689263,0.34,100050.0,100040.0,0.05]
[1762287689464,0.04176679,100080.0,100030.0,0.25993701]
[1762287689465,0.0412,100070.0,100030.0,0.25993701]
[1762287689700,0.3812,100070.0,100030.0,0.19994001]
[1762287689936,0.00056679,100080.0,100040.0,0.20990149]
[1762287690061,0.00056679,100080.0,100040.0,0.19990549]
[1762287690062,0.34,100060.0,100040.0,0.19990549]
[1762287690261,0.34,100050.0,100030.0,0.24994001]
[1762287690460,0.34,100040.0,100030.0,0.24994001]
[1762287690662,8e-05,100080.0,100060.0,0.19987946]
[1762287690904,0.34,100050.0,100040.0,0.28608967]
[1762287691070,0.04128,100080.0,100060.0,0.1998717]
[1762287691270,8e-05,100080.0,100060.0,0.1998717]
[1762287691473,8e-05,100080.0,100050.0,0.28943756]
[1762287691688,8e-05,100080.0,100050.0,0.33943756]
[1762287691689,0.34,100060.0,100050.0,0.33943756]
[1762287691893,0.04176679,100080.0,100020.0,0.29943826]
[1762287692073,0.0412,100070.0,100030.0,0.20993697]
[1762287692289,0.00056679,100080.0,100040.0,0.08955669]
[1762287692492,0.0412,100070.0,100020.0,0.38562054]
[1762287692854,0.0412,100070.0,100040.0,0.08955669]
[1762287693035,0.0412,100070.0,100020.0,0.38562054]
[1762287693266,0.0412,100070.0,100020.0,0.34951464]
[1762287693437,0.00056679,100080.0,100040.0,0.29947204]
[1762287693652,0.00056679,100080.0,100050.0,0.25989413]
[1762287693798,0.00056679,100080.0,100060.0,0.19987966]
[1762287693982,0.00056679,100080.0,100070.0,0.29498009]
[1762287694181,0.00056679,100080.0,100070.0,0.08618228]
[1762287694389,0.00056679,100080.0,100070.0,0.19986009]
[1762287694600,0.00056679,100080.0,100070.0,0.23604237]
[1762287694799,0.00056679,100080.0,100070.0,0.35616237]
[1762287695456,0.00056679,100080.0,100070.0,0.06118228]
[1762287695671,0.00056679,100080.0,100060.0,0.08955669]
[1762287695880,0.00056679,100080.0,100050.0,0.05]
[1762287695881,0.05006679,100080.0,100050.0,0.05]
[1762287696415,0.05006679,100080.0,100030.0,0.09512]
[1762287696416,0.19986109,100070.0,100030.0,0.05]
[1762287696627,0.20985538,100070.0,100020.0,0.13955669]
[1762287696839,0.0495,100060.0,100020.0,0.13955669]
[1762287697040,0.0495,100060.0,100020.0,0.08955669]
[1762287697187,0.24938018,100060.0,100020.0,0.08955669]
[1762287697596,0.0495,100050.0,100010.0,0.05]
[1762287697796,0.009996,100040.0,100010.0,0.05]
[1762287697991,0.009996,100040.0,99984.0,0.18467669]
[1762287697992,0.04118,100020.0,99990.0,0.05]
[1762287698233,0.04118,100020.0,100000.0,0.08955669]
[1762287698974,0.04118,100020.0,99990.0,0.05]
[1762287698975,0.09068,100020.0,99991.0,0.00301377]
[1762287699119,0.09068,100020.0,99984.0,0.08955669]
[1762287699320,0.09068,100020.0,99985.0,0.0043304]
[1762287699521,0.04118,100020.0,99985.0,0.0043304]
[1762287699721,0.0495,100010.0,99985.0,0.00431543]
[1762287700164,0.0495,100010.0,99984.0,0.08970269]
[1762287700165,0.0495,100010.0,99984.0,0.000146]
[1762287700536,0.04118,100020.0,99985.0,0.08955669]
[1762287700860,0.30063808,100020.0,99987.0,0.08955669]
[1762287701074,0.09068,100020.0,99987.0,0.08955669]
[1762287701278,0.30064575,100020.0,99987.0,0.08955669]
[1762287701618,0.30064575,100020.0,99985.0,4e-05]
[1762287701619,0.0495,100020.0,99988.0,0.08955669]
[1762287701832,0.19994019,100030.0,99988.0,0.0952982]
[1762287702046,0.0495,100020.0,99988.0,0.0952982]
[1762287702285,0.19994069,100030.0,99988.0,0.0952982]
[1762287702487,0.1999613,100020.0,99988.0,0.0952982]
[1762287702670,0.1999613,100020.0,99985.0,0.00016]
[1762287702671,0.226012,99989.0,99985.0,0.00016]
[1762287702871,0.226012,99989.0,99921.0,0.04892]
[1762287702872,0.00051,99988.0,99920.0,0.05]
[1762287703046,0.20007285,99964.0,99920.0,0.05]
[1762287703263,0.20008386,99959.0,99920.0,0.05]
[1762287703465,0.20007681,99962.0,99920.0,0.05]
[1762287703719,0.09111,99969.0,99920.0,0.05]
[1762287703988,0.09111,99969.0,99943.0,0.08955669]
[1762287703989,0.02475,99969.0,99943.0,0.08955669]
[1762287704240,0.025,99982.0,99958.0,0.08955669]
[1762287704700,0.025,99998.0,99960.0,0.05]
[1762287704918,0.2000127,99994.0,99960.0,0.05]
[1762287705140,0.2000127,99994.0,99958.0,0.08959669]
[1762287705358,0.20001846,99991.0,99958.0,0.08959669]
[1762287705586,0.20001872,99991.0,99959.0,0.08955669]
[1762287705824,0.0495,99997.0,99960.0,0.08955669]
[1762287705825,0.0123435,99989.0,99960.0,0.08955669]
[1762287706074,0.0123435,99989.0,99975.0,0.08955669]
[1762287706274,0.0123435,99989.0,99980.0,0.03618228]
[1762287706790,0.00021026,99998.0,99980.0,0.03618228]
[1762287706992,0.00021026,99998.0,99980.0,0.08618228]
[1762287707696,0.00021026,99998.0,99980.0,0.05]
[1762287707890,0.00021026,99998.0,99975.0,0.08955669]
[1762287708093,0.025,99992.0,99976.0,0.08955669]
[1762287708312,0.02495634,99992.0,99977.0,0.08955669]
[1762287708521,0.00021026,99998.0,99977.0,0.08955669]
[1762287708522,0.00021026,99998.0,99980.0,4e-05]
[1762287709184,0.26627112,100020.0,99977.0,0.00014578]
[1762287709185,0.1204882,100020.0,99977.0,0.00014578]
[1762287709421,0.210002,100000.0,99980.0,4e-05]
[1762287709642,0.34,99997.0,99980.0,4e-05]
[1762287710122,0.34,99989.0,99980.0,4e-05]
[1762287710562,0.009999,100010.0,99980.0,4e-05]
[1762287710798,0.20003642,99982.0,99980.0,4e-05]
[1762287711007,0.20003642,99982.0,99980.0,8e-05]
[1762287711008,0.34,99982.0,99980.0,8e-05]
[1762287711252,0.34,99981.0,99980.0,8e-05]
[1762287711474,0.34,99981.0,99980.0,0.00012]
[1762287711897,0.34,99981.0,99980.0,0.00016]
[1762287712293,0.10223924,99981.0,99980.0,0.00016]
[1762287712496,0.009999,100010.0,99980.0,0.00016]
[1762287712497,0.19999548,100010.0,99980.0,0.00016]
[1762287712695,0.19998242,100010.0,99983.0,0.08955669]
[1762287712917,0.19999878,100020.0,99984.0,0.00586672]
[1762287713043,0.20002479,99988.0,99985.0,0.00586666]
[1762287713243,0.03492938,99987.0,99980.0,0.0002]
[1762287713442,0.06186616,100010.0,99980.0,0.0002]
[1762287713443,0.20003589,99983.0,99980.0,0.0002]
[1762287713670,0.06034944,100020.0,99980.0,0.0002]
[1762287713671,0.009998,100020.0,99980.0,0.0002]
[1762287713871,0.20000523,99998.0,99980.0,0.0002]
[1762287714205,0.2000137,99994.0,99980.0,0.0002]
[1762287714408,0.20000003,100000.0,99980.0,0.00095578]
[1762287714570,0.009999,100010.0,99981.0,0.08955669]
[1762287714571,0.19998223,100010.0,99981.0,0.08955669]
[1762287714775,0.19998223,100010.0,99982.0,0.01203441]
[1762287714978,0.19998223,100010.0,99986.0,0.08955669]
[1762287715243,0.24386917,100030.0,99987.0,0.00933187]
[1762287715244,0.22228107,100030.0,99987.0,0.00933187]
[1762287715416,0.21224782,100030.0,99987.0,0.0093323]
[1762287715620,0.19996038,100020.0,99987.0,0.0093323]
[1762287715817,0.19996027,100020.0,99987.0,0.0093323]
[1762287715997,0.22224482,100030.0,99990.0,0.04947]
[1762287715998,0.2122498,100030.0,99990.0,0.04947]
[1762287716202,0.01230627,100030.0,99991.0,0.00935932]
[1762287716406,0.20998257,100060.0,100010.0,0.08955669]
[1762287716604,0.19998857,100060.0,100030.0,0.08955669]
[1762287716809,0.20076416,100040.0,100020.0,0.00601687]
[1762287717031,0.19990014,100050.0,100010.0,0.13902669]
[1762287717364,0.19990214,100050.0,100030.0,0.08955669]
[1762287717510,0.00014591,100050.0,100030.0,0.08955669]
[1762287717898,0.00014591,100050.0,100020.0,0.04947]
[1762287717899,0.2000485,100050.0,100020.0,0.04947]
[1762287718125,0.19994259,100030.0,100000.0,0.04947]
[1762287718326,0.19994259,100030.0,99986.0,0.08955669]
[1762287718327,0.19996005,100020.0,99986.0,0.08955669]
[1762287718531,0.19998059,100010.0,99986.0,0.08955669]
[1762287718703,0.19998017,100010.0,99986.0,0.08955669]
[1762287718907,0.19994259,100030.0,99986.0,0.08955669]
[1762287719137,0.19994026,100030.0,99990.0,0.04947]
[1762287719477,0.19994485,100030.0,99990.0,0.04947]
[1762287719653,0.19996035,100020.0,100000.0,4e-05]
[1762287720090,0.20008597,100030.0,100000.0,4e-05]
[1762287720228,0.20008597,100030.0,100000.0,8e-05]
[1762287720229,0.20008671,100030.0,100000.0,8e-05]
[1762287720429,0.20008671,100030.0,100010.0,0.08955669]
[1762287720430,0.00014589,100030.0,100010.0,0.08955669]
[1762287721035,0.00014589,100030.0,100010.0,0.13902669]
[1762287721245,0.00014589,100030.0,100010.0,0.08955669]
[1762287721461,0.00014589,100030.0,100010.0,0.13902669]
[1762287721671,0.21008535,100030.0,100000.0,0.00012]
[1762287721880,0.19996013,100020.0,100000.0,0.00012]
[1762287722087,0.00014589,100030.0,100010.0,0.08955669]
[1762287722319,0.00073318,100030.0,100020.0,0.05190025]
[1762287722743,0.00073318,100030.0,100020.0,0.38003228]
[1762287722952,0.01227403,100080.0,100030.0,0.03618228]
[1762287723153,0.01276043,100080.0,100050.0,0.08955669]
[1762287723558,0.21260112,100080.0,100050.0,0.08955669]
[1762287723767,0.21260168,100080.0,100050.0,0.08955669]
[1762287723978,0.20987533,100060.0,100030.0,0.08955669]
[1762287724234,0.20987533,100060.0,100010.0,0.18397669]
[1762287724235,0.009996,100040.0,100010.0,0.04947]
[1762287724435,0.009997,100030.0,100000.0,0.00024]
[1762287724880,0.20992717,100040.0,100000.0,0.00028]